Workbook

Sheet COVER
A7: BILL OF QUANTITIES
A9: FOR
A11: THE PROPOSED CONSTRUCTION OF PIT LATRINES
A12: FOR THE RESETTLEMENT OFFICE
A13: IN
A14: MAYUKWAYUKWA
A17: THE UN HOUSE, ON PLOT No. 20842, ALICK NKATA ROAD, LONG ACRES, LUSAKA.
A18: 2019

Sheet MAIN BOQ
A1: CLIENT | B1: UNDP
A3: ITEM NO | B3: DESCRIPTION | C3: UNIT | D3: QUANTITY | E3: RATE | F3: AMOUNT
B6: Note:
B8: The contractor shall take all due care to provide shoring, needling, strutting and all temporary works necessary for supporting the existing structure in the course of demolitions and construction until it becomes self supporting All debris should be removed from site as soon as possible to an approved tipping location and levelled and made environmentally safe The contractor shall hand over to the Employer on site all salvaged demolished materials
B10: Preambles
B12: The substructure has been measured up to and including the surface slab.
B14: Unless otherwise stated all excavations shall be in "pickable materials" as described.
A20: 1 | B20: STRUCTURAL STEEL WORK
B22: GENERALLY
B24: All steel work to be done in accordance with SABS 1431 Grade 300W
B26: Before shop painting the steel shall be cleaned off all scale rust, welding slag , oil grease or other foreign material.
B28: The contractor's rates should include for painting exposed structural steelwork with 3 coats of gloss paint
B30: Steel Grill gate with hinges fixed to brickwall approx No1 as per drawing detail | C30: item | D30: 1 | E30: 0 | F30: =D30*E30 -> 0
B32: SUPERSTRUCTURE CARRIED TO SUMMARY | F32: =SUM(F19:F31) -> 0
A34: 2 | B34: CARPENTRY, JOINERY AND IRONMONGERY,METALWORK
B36: Joinery
B38: Solid core flush door with veneered finish as described,all doors to be supplied with monarch pressed steel single rebate as complete with frame
B40: 44 mm thick External quality solid hardwood door leaf size 700 mm wide x 1960 mm high complete with all accessories | C40: No | D40: 1 | E40: 0 | F40: =D40*E40 -> 0
B42: Ironmongery
B44: Ironmongery and fixing as described
B46: Lockset as "Dorma" with brushed finish handles | C46: No | D46: 1 | E46: 0 | F46: =D46*E46 -> 0
B48: TOTAL CARPENTRY, JOINERY AND IRONMONGERY,METALWORK TO SUMMARY | F48: =SUM(F40:F47) -> 0
B50: Sizes are approximate only and measurements on site must be taken before fabrication. Due allowance must be made for tolerances in accordance with the Architec's details.
B52: Protection:
B54: The contractor will be required to protect his work during the course of construction, which protection shall be adequate for the purpose and to the full approval of the Architect.
B56: Such protection shall only be removed after a written instruction from the Architect.
B58: Cleaning:
B60: All work must be cleaned down upon completion. Glazing as installed will not be accepted as clean glass and the contractor must allow for polishing glass as and when instructed by the Architect.
A62: 3 | B62: PLUMBING INSTALLATIONS
B64: Stainless Steel toilet roller holder | C64: No | D64: 1 | E64: 0 | F64: =D64*E64 -> 0
B66: Builders work in Connection with Plumbing Installations
B68: Include for cutting or forming holes, chases, mortices etc, in concrete, brickwork, blockwork etc, for plumbing installations covered in this section and for making good in all trades described | C68: Item | D68: 1 | E68: 0 | F68: 0
B71: Complete tap system with all necessary connections to from water source to drop points as per draing detail | C71: item | D71: 1 | E71: 0 | F71: =D71*E71 -> 0
B73: Wash hand basin complete with all fittings and pedastal | C73: No | D73: 1 | E73: 0 | F73: 0
B75: Pvc water closet complete with all fittings built around concrete blocks and pipe works to septic tank and soakaway | C75: item | D75: 1 | E75: 0 | F75: 0
B77: PLUMBING TOTAL CARRIED TO SUMMARY | F77: =SUM(F63:F76) -> 0
A79: 4 | B79: FLOOR, WALL AND CEILING FINISHINGS
B81: In-situ Finishings
B83: One coat steel float finish cement sand (1:4) rough cast plaster
B85: 15 mm to walls internally and externally | C85: m2 | D85: 60 | E85: 0 | F85: =D85*E85 -> 0
B88: FLOOR, WALL AND CEILING FINISHINGS CARRIED TO SUMMARY | F88: =SUM(F85:F87) -> 0
A90: 5 | B90: PAINTING AND DECORATING
B92: 'Dulux' or equal and approved One Plaster primer coat and Two finishing coats'Dulux Wash and Wear paint.
B94: To plastered walls internally and externally | C94: m2 | D94: 20 | E94: 0 | F94: =D94*E94 -> 0
B96: To Grill (0.80m wide x 2m) | C96: item | D96: 1 | E96: 0 | F96: =D96*E96 -> 0
B99: PAINTING AND DECORATING TO SUMMARY | F99: =SUM(F94:F98) -> 0
A101: 6 | B101: Soakaway Pit
B103: Excavation and construction of soak away pit for pit latrine | C103: item | D103: 1
B105: Soakaway Pit Summary | F105: =SUM(F100:F104) -> 0
A107: 1 | B107: SUPERSTRUCTURE WORKS | F107: =F32 -> 0
A109: 2 | B109: CARPENTRY, JOINERY AND IRONMONGERY | F109: =F48 -> 0
A111: 3 | B111: PLUMBING INSTALLATIONS | F111: =F77 -> 0
A113: 4 | B113: FLOOR, WALL AND CEILING FINISHINGS | F113: =F88 -> 0
A115: 5 | B115: PAINTING AND DECORATING | F115: =F99 -> 0
A117: 6 | B117: SOAKAWAY PIT
A122: 1 | B122: PIT LATRINE BILL | C122: Page | F122: =SUM(F102:F121) -> 0

Sheet FORM OF TENDER
A1: FORM OF TENDER
B3: SUMMARY | C3: PAGE | D3: DATE | E3: AMOUNT
A6: 1 | B6: SUPERSTRUCTURE WORKS | C6: Page | D6: 2019-12-07 | E6: ='MAIN BOQ'!F32 -> 0
A8: 2 | B8: CARPENTRY, JOINERY AND IRONMONGERY | C8: Page | D8: 2019-12-07 | E8: ='MAIN BOQ'!F48 -> 0
A10: 3 | B10: PLUMBING INSTALLATIONS | C10: Page | D10: 2019-12-07 | E10: ='MAIN BOQ'!F77 -> 0
A12: 4 | B12: FLOOR, WALL AND CEILING FINISHINGS | C12: Page | D12: 2019-12-07 | E12: ='MAIN BOQ'!F88 -> 0
A14: 5 | B14: PAINTING AND DECORATING | C14: Page | D14: 2019-12-07 | E14: ='MAIN BOQ'!F99 -> 0
B16: TOTAL BILL | E16: =SUM(E4:E15) -> 0
B19: ADD Ps&Gs @5 % | E19: =5%*E16 -> 0
B22: ADD 12% CONTINGENCY | E22: =12%*(E19+E16) -> 0
B26: GRAND TOTAL AS TENDER | E26: =SUM(E16:E25) -> 0

Sheet variation 1 (hidden)
B1: Variation for Unicef Main Building to main works
B2: Variation No.1
A3: NO | B3: DESCRIPTION | C3: UNIT | D3: QTY | E3: RATE | F3: AMOUNT
A4: A | B4: Cutting of the existing concrete strip of width 300mm top base and 250mm bottom base and depth 150mm to provide for concrete thickening to support the loadbearing superstructure along the main entrance walls and toilets | C4: M | D4: 24.4 | E4: 150 | F4: =D4*E4 -> 3660
A5: B | B5: Cast concrete strip C25 of width 300mm top base and 250mm bottom base and depth 150mm to provide for concrete thickening to support the loadbearing superstructure along the main entrance walls and toilets | C5: M | D5: 24.4 | E5: 85 | F5: =D5*E5 -> 2074
A6: C | B6: Provide a 20mm thick expansion joint covering the entire side area of the joining point substructure block work and filled with flexible material to be approved by the PM | C6: M | D6: 10.35 | E6: 85 | F6: 879.75
A7: D | B7: Cut and dispose | C7: M3 | D7: 50 | E7: 80 | F7: 4000
A8: E | B8: Supply and re-route water pipe c/w accessories Excavation and | C8: M | D8: 87 | E8: 30 | F8: 2610
B9: backfilling | F9: 0
A11: F | B11: Construction of a greenhouse size 6.3m ×4m | C11: item | D11: 1 | E11: 25240 | F11: 25240
B14: Subtotal | F14: =SUM(F4:F12) -> 38463.75
B16: Variation No.2
A18: Item | B18: DESCRIPTION | C18: Unit | D18: Qty | E18: Rate | F18: Amount
F19: K N
B20: MAIN BUILDING
B22: SUBSTRUCTURE -
B24: EXCAVATIONS AND EARTHWORKS (Returning wall) | F24: =IF(D24>0,D24*E24,"") -> 
F25: =IF(D25>0,D25*E25,"") -> 
B26: Preambles
A28: (i) | B28: Scope of Work in the substructure section includes work in all trades
B29: in foundations upto the top of the ground floor slab.
A31: (ii) | B31: Unless otherwise described all excavations shall be in "pickable
B32: material" as described
B34: SITE PREPARATIONS
A36: A | B36: Treat the surfaces of hardcore filling, sides and bottoms of
B37: excavations with approved environmentally friendly antproofing | C37: m2 | D37: 63 | E37: 7 | F37: =D37*E37 -> 441
B38: treatment as described
A40: B | B40: Excavate to remove soil average 1200mm deep and wheel, spread | C40: m3 | D40: 25 | E40: 47.5 | F40: =D40*E40 -> 1187.5
B41: and level on site where directed.
A43: C | B43: Load and transport surplus excavated materials to an authorized | C43: m3 | D43: =D40 -> 25 | E43: 57 | F43: 1425
B44: disposal site.
B46: Concrete
B48: Vibrated cement concrete grade 20/20mm maximum
B49: aggregate as described
A51: D | B51: 100mm thick to drain | C51: m3 | D51: 3 | E51: 1235 | F51: 3705
A53: E | B53: 100mm thick to Apron | C53: m3 | D53: 4 | E53: 1235 | F53: 4940
B55: Walling
B57: Load bearing solid concrete block walling filled with plain
B58: concrete mix 15/20,3.5N/mm2 strength,bedded and
B59: pointed in cement mortar 1:4 as described
A61: F | B61: 150mm walls | C61: m2 | D61: 42 | E61: 133 | F61: 5586
B63: Reinforcement to walling
A65: G | B65: Y12 Bars | C65: Kg | D65: 998 | E65: 17.1 | F65: 17065.8
A67: H | B67: 1.5m Brick force | C67: m | D67: 126 | E67: 5.7 | F67: 718.2
B69: One coat 19mm cement and sand (1:4) rendering wood
B70: float finished on the following:
A72: J | B72: Plinth walls | C72: m2 | D72: 42 | E72: 33.25 | F72: 1396.5
F74: =SUM(F37:F73) -> 36465
B76: ROOFING
B78: IBR Roof (0.6gauge ) on 75 x 50 purlins approx 900 c/c on
B79: 150 x 150mm sw trusses according to manufacture's
B80: instructions/ measured including laps and all labours to
B81: roofing sheets, closers,etc
A83: A | B83: Flashing to roof | C83: m | D83: 180 | E83: 125 | F83: 22500
A85: B | B85: Flashing to wall | C85: m | D85: =41+40 -> 81 | E85: 125 | F85: 10125
F87: =SUM(F82:F86) -> 32625
B88: Walk way
A90: A | B90: Include for re-installation of steel support to walkway | C90: item | D90: 1 | E90: 22500 | F90: =E90 -> 22500
B92: ALUMINIUM WORK | F92: =SUM(F90) -> 22500
A94: A | B94: Demolition of 1200 x 1000mm blockwork to create opening | C94: no. | D94: 1 | E94: =1.2*1*50 -> 60 | F94: =D94*E94 -> 60
A96: B | B96: 1200 x 1000mm window | C96: no. | D96: 1 | E96: =1.2*1*2375 -> 2850 | F96: =D96*E96 -> 2850
F98: =SUM(F94:F96) -> 2910
B100: Electrical
A102: A | B102: 4-CORE, 35mmsq. PVC/SWA/PVC + 35mmsq. BCEW, as ZAMEFA,
B103: From Existing Main Electrical Panel to DB-E1 (installation shall only | C103: m | D103: 67 | E103: 398 | F103: =D103*E103 -> 26666
B104: be upon approval from Electrical Engineer and Project Manager)
A106: B | B106: Reducing height for trunking | C106: item | D106: 1 | E106: 1200 | F106: =D106*E106 -> 1200
A108: C | B108: 13A Double White Switched Socket Outlet to be place in existing floor box | C108: No. | D108: 2 | E108: 75 | F108: =D108*E108 -> 150
A110: D | B110: Rearranging of wiring to match new partition layout | C110: item | D110: 1 | E110: 2000 | F110: =D110*E110 -> 2000
A112: E | B112: 2.5mmsq. Cu/PVC Red single core, as Live | C112: m | D112: 20 | E112: 22.5 | F112: =D112*E112 -> 450
A114: F | B114: 2.5mmsq. Cu/PVC Black single core, as Neutral | C114: m | D114: 20 | E114: 22.5 | F114: =D114*E114 -> 450
A116: G | B116: 2.5mmsq. Cu/PVC Green single core, Earth | C116: m | D116: 20 | E116: 22.5 | F116: 450
A118: H | B118: 25mmsq. Pvc conduit pipe | C118: m | D118: 10 | E118: 10 | F118: 100
A120: J | B120: cutting concrete slab 150mm wide and 50mm deep to receive conduit per metre and making good all disturbed works | C120: m | D120: 5 | E120: 80 | F120: 400
A122: K | B122: cutting concrete slab 75mm wide and 50mm deep to receive conduit per metre and making good all disturbed works | C122: m | D122: 5 | E122: 80 | F122: 400
A124: L | B124: Cut to create opening in floor slab to receive floor box size to match existing and make good to all disturbed works | C124: No. | D124: 2 | E124: 80 | F124: 160
A126: M | B126: Cut wall to allow for installation of existing switch and wiring and make good to all disturbed works | C126: m | D126: 2 | E126: 100 | F126: =D126*E126 -> 200
F129: =SUM(F103:F127) -> 32626
B130: as at 15.04.2019
A132: A | B132: Supply and installation of kitchen unit | C132: item | D132: 1 | E132: 9912.87 | F132: =D132*E132 -> 9912.87
A134: B | B134: supply and installation of mirrors | C134: no. | D134: 2 | E134: 920 | F134: =D134*E134 -> 1840
A136: C | B136: Supply and installation of door closers | C136: no. | D136: 23 | E136: 1950 | F136: =D136*E136 -> 44850
F138: =SUM(F132:F136) -> 56602.87
B140: as at 23.04.2019
B142: Demolition
A144: A | B144: Take down existing 900 x 2000mm door and reinstall on new | C144: no. | D144: 2
B145: frames
A147: B | B147: Carefully take down existing 900 x 2000 mm door frame and | C147: no. | D147: 2
B148: prepare to received new frames and make good to disturbed works
A150: C | B150: Carefully create 900 x 2800mm high door opening in dry wall and | C150: no. | D150: 1
B151: make good to disturbed works
B154: The following in Brick /dish drain
A156: D | B156: Storm water channel 600mm girth consisting of three rows
B157: concrete bricks laid flat on sand in cement sand mortar (1:4) to
B158: falls with side rows set slightly sloping including angles and end | C158: m | D158: 45
B159: flushings up joints and pointing, excavating shallow trenches to
B160: falls,well packing adjacent earth up to edges , wheeling and
B161: depositing surplus excavated material as directed
A169: 94 | B169: RATE# | C169: 0 | F169: =F74+F87+F92+F98+F129+F138 -> 183728.87
B172: TOTAL | F172: =F14+F169 -> 222192.62 | G172: 222192.62

Sheet CALCULATIONS (hidden)
D19: ADD | E19: beams | F19: =16.46*2 -> 32.92 | G19: 67.1 | H19: =F19*G19 -> 2208.932 | I19: 36 | J19: =H19*I19 -> 79521.552
E20: column | F20: 4 | G20: 73 | H20: =F20*G20 -> 292 | I20: 36 | J20: =H20*I20 -> 10512
D22: cutting and moving canopy | J22: 10000
E23: bracings | F23: =8*2.504 -> 20.032 | G23: 15 | H23: =F23*G23 -> 300.48 | I23: 36 | J23: =H23*I23 -> 10817.28
E24: IPE 200 | F24: =9*1.23 -> 11.07 | G24: 22.4 | H24: =F24*G24 -> 247.968 | I24: 36 | J24: =H24*I24 -> 8926.848
I26: k | J26: =SUM(J19:J24) -> 119777.68
D30: OMISSION | H30: beams | J30: ='[1]Contract BOQ'!$F$70 -> 65304
H31: foundation | J31: ='[1]Contract BOQ'!$I$54 -> 30742.5
J32: =#REF! -> 
H33: 254 X146 X31 | J33: ='[1]Contract BOQ'!$F$74 -> 14508
J34: =SUM(J30:J33) -> 
I35: k | J35: =J26-J34 -> 
